fUSD/lending_fUSD_20250215
["ID","MTS","AMOUNT","RATE_DAILY","PERIOD"]
[353217041,1739662235237,-500.0,0.00010958,2]
[353217042,1739662235247,-638.46,0.00010958,2]
[353217043,1739662235256,-500.0,0.00010958,2]
[353217044,1739662235266,-500.0,0.00010958,2]
[353217045,1739662235276,-500.0,0.00010958,2]
[353217046,1739662235285,-500.0,0.00010958,2]
[353217047,1739662235296,-894.63,0.00010958,2]
[353217048,1739662235305,-500.0,0.00010958,2]
[353217049,1739662235315,-277.086371,0.00010958,2]
[353217050,1739662235324,-500.0,0.00010958,2]
[353217051,1739662235335,-500.0,0.00010958,2]
[353217052,1739662235347,-500.0,0.00010958,2]
[353217053,1739662235356,-500.0,0.00010958,2]
[353217054,1739662235365,-715.15,0.00010958,2]
[353217055,1739662235374,-500.0,0.00010958,2]
[353217056,1739662235383,-583.03,0.00010958,2]
[353217057,1739662235392,-915.621023,0.00010958,2]
[353217058,1739662235401,-645.01,0.00010958,2]
[353217059,1739662235411,-500.0,0.00010958,2]
[353217060,1739662235423,-500.0,0.00010958,2]
[353217061,1739662235432,-500.0,0.00010958,2]
[353217062,1739662235443,-500.0,0.00010958,2]
[353217063,1739662235455,-500.0,0.00010958,2]
[353217064,1739662235465,-500.0,0.00010958,2]
[353217065,1739662235479,-500.0,0.00010958,2]
[353217066,1739662235499,-500.0,0.00010958,2]
[353217067,1739662235508,-500.0,0.00010958,2]
[353217068,1739662235519,-1067.52,0.00010958,2]
[353217069,1739662235530,-500.0,0.00010958,2]
[353217070,1739662235539,-500.0,0.00010958,2]
[353217071,1739662235549,-500.0,0.00010958,2]
[353217072,1739662235558,-500.0,0.00010958,2]
[353217073,1739662235566,-500.0,0.00010958,2]
[353217074,1739662235575,-624.35,0.00010958,2]
[353217075,1739662235584,-500.0,0.00010958,2]
[353217076,1739662235593,-500.0,0.00010958,2]
[353217077,1739662235604,-500.0,0.00010958,2]
[353217078,1739662235613,-500.0,0.00010958,2]
[353217079,1739662235624,-642.34,0.00010958,2]
[353217080,1739662235633,-646.49,0.00010958,2]
[353217081,1739662235642,-765.12,0.00010958,2]
[353217082,1739662235651,-500.0,0.00010958,2]
[353217083,1739662235660,-500.0,0.00010958,2]
[353217084,1739662235670,-1235.94,0.00010958,2]
[353217085,1739662235680,-500.0,0.00010958,2]
[353217086,1739662235689,-500.0,0.00010958,2]
[353217087,1739662235699,-500.0,0.00010958,2]
[353217088,1739662235708,-500.0,0.00010958,2]
[353217089,1739662235719,-500.0,0.00010958,2]
[353217090,1739662235729,-565.82,0.00010958,2]
[353217091,1739662235739,-510.92,0.00010958,2]
[353217092,1739662235748,-500.0,0.00010958,2]
[353217093,1739662235758,-500.0,0.00010958,2]
[353217094,1739662235767,-787.96507313,0.00010958,2]
[353217095,1739662236149,-642.39492687,0.00010958,2]
[353217096,1739662236159,-500.0,0.00010958,2]
[353217097,1739662236169,-500.0,0.00010958,2]
[353217098,1739662236178,-740.89,0.00010958,2]
[353217099,1739662236188,-711.92,0.00010958,2]
[353217100,1739662236198,-53.77502313,0.00010958,2]
[353217101,1739662236210,-446.22497687,0.00010958,2]
[353217102,1739662236220,-500.0,0.00010958,2]
[353217103,1739662236229,-500.0,0.00010958,2]
[353217104,1739662236239,-500.0,0.00010958,2]
[353217105,1739662236248,-736.43,0.00010958,2]
[353217106,1739662236257,-500.0,0.00010958,2]
[353217107,1739662236266,-500.0,0.00010958,2]
[353217108,1739662236275,-147.81317271,0.00010958,2]
[353217109,1739662236287,-352.18682729,0.00010958,2]
[353217110,1739662236297,-500.0,0.00010958,2]
[353217111,1739662236306,-306.40660031,0.00010958,2]
[353217112,1739662236347,-193.59339969,0.00010958,2]
[353217113,1739662236356,-412.12654072,0.00010958,2]
[353217114,1739662237501,-200.0,9.289e-05,2]
[353217115,1739662237511,-87.87345928,0.00010958,2]
[353217116,1739662237521,-235.77654072,0.00010958,2]
[353217117,1739662237533,-264.22345928,0.00010958,2]
[353217118,1739662237542,-636.26637078,0.00010958,2]
[353217119,1739662237554,-364.95362922,0.00010958,2]
[353217120,1739662237563,-500.0,0.00010958,2]
[353217121,1739662237576,-500.0,0.00010958,2]
[353217122,1739662237585,-101.31413592,0.00010958,2]
[353217123,1739662237597,-398.68586408,0.00010958,2]
[353217124,1739662237606,-130.96947647,0.00010958,2]
[353217125,1739662237617,-369.03052353,0.00010958,2]
[353217126,1739662237626,-500.0,0.00010958,2]
[353217127,1739662237635,-500.0,0.00010958,2]
[353217128,1739662237644,-500.0,0.00010958,2]
[353217129,1739662237654,-500.0,0.00010958,2]
[353217130,1739662237663,-500.0,0.00010958,2]
[353217131,1739662237672,-21.2196028,0.00010958,2]
[353217132,1739662237683,-561.1303972,0.00010958,2]
[353217133,1739662237692,-500.0,0.00010958,2]
[353217134,1739662237701,-500.0,0.00010958,2]
[353217135,1739662237712,-500.0,0.00010958,2]
[353217136,1739662237721,-500.0,0.00010958,2]
[353217137,1739662237731,-531.92,0.00010958,2]
[353217138,1739662237740,-183.85087092,0.00010958,2]
[353217141,1739662237758,-316.14912908,0.00010958,2]
[353217143,1739662237767,-500.0,0.00010958,2]
[353217145,1739662237776,-500.0,0.00010958,2]
[353217147,1739662237785,-110.36330491,0.00010958,2]
[353217149,1739662237797,-747.37669509,0.00010958,2]
[353217152,1739662237806,-500.0,0.00010958,2]
[353217155,1739662237815,-42.62330491,0.00010958,2]
[353217158,1739662237826,-735.03669509,0.00010958,2]
[353217161,1739662237835,-275.66330491,0.00010958,2]
[353217165,1739662237846,-224.33669509,0.00010958,2]
[353217167,1739662237855,-623.93,0.00010958,2]
[353217170,1739662237864,-163.58330491,0.00010958,2]
[353217174,1739662237875,-336.41669509,0.00010958,2]
[353217177,1739662237884,-500.0,0.00010958,2]
[353217180,1739662237893,-571.25,0.00010958,2]
[353217183,1739662237903,-500.0,0.00010958,2]
[353217185,1739662237912,-500.0,0.00010958,2]
[353217188,1739662237921,-500.0,0.00010958,2]
[353217190,1739662237930,-500.0,0.00010958,2]
[353217192,1739662237939,-500.0,0.00010958,2]
[353217194,1739662237948,-500.0,0.00010958,2]
[353217196,1739662237957,-500.0,0.00010958,2]
[353217198,1739662237966,-500.0,0.00010958,2]
[353217200,1739662237975,-500.0,0.00010958,2]
[353217202,1739662237984,-1013.98,0.00010958,2]
[353217204,1739662237994,-500.0,0.00010958,2]
[353217206,1739662238004,-500.0,0.00010958,2]
[353217208,1739662238018,-500.0,0.00010958,2]
[353217210,1739662238027,-500.0,0.00010958,2]
[353217212,1739662238036,-500.0,0.00010958,2]
[353217214,1739662238046,-500.0,0.00010958,2]
[353217217,1739662238061,-500.0,0.00010958,2]
[353217219,1739662238070,-903.86,0.00010958,2]
[353217221,1739662238079,-781.51,0.00010958,2]
[353217222,1739662238088,-698.63,0.00010958,2]
[353217225,1739662238098,-500.0,0.00010958,2]
[353217226,1739662238108,-591.34,0.00010958,2]
[353217228,1739662238117,-500.0,0.00010958,2]
[353217230,1739662238126,-500.0,0.00010958,2]
[353217233,1739662238135,-958.11,0.00010958,2]
[353217235,1739662238145,-500.0,0.00010958,2]
[353217237,1739662238156,-500.0,0.00010958,2]
[353217238,1739662238165,-1134.83,0.00010958,2]
[353217240,1739662238175,-523.40262966,0.00010958,2]
[353217242,1739662238184,-574.57,0.00010958,2]
[353217244,1739662238194,-500.0,0.00010958,2]
[353217246,1739662238203,-678.34,0.00010958,2]
[353217249,1739662238212,-500.0,0.00010958,2]
[353217250,1739662238221,-500.0,0.00010958,2]
[353217252,1739662238231,-500.0,0.00010958,2]
[353217254,1739662238240,-500.0,0.00010958,2]
[353217256,1739662238249,-500.0,0.00010958,2]
[353217258,1739662238258,-996.01,0.00010958,2]
[353217261,1739662238268,-500.0,0.00010958,2]
[353217263,1739662238277,-536.48,0.00010958,2]
[353217265,1739662238289,-731.44,0.00010958,2]
[353217267,1739662238298,-500.0,0.00010958,2]
[353217269,1739662238309,-500.0,0.00010958,2]
[353217287,1739662238468,-500.0,0.00010958,2]
[353217289,1739662238478,-500.0,0.00010958,2]
[353217291,1739662238487,-1061.33,0.00010958,2]
[353217293,1739662238497,-500.0,0.00010958,2]
[353217295,1739662238506,-500.0,0.00010958,2]
[353217297,1739662238514,-55.77614176,0.00010958,2]
[353217299,1739662238527,-444.22385824,0.00010958,2]
[353217301,1739662238537,-469.90429456,0.00010958,2]
[353217303,1739662238548,-30.09570544,0.00010958,2]
[353217305,1739662238558,-536.87,0.00010958,2]
[353217307,1739662238567,-899.96,0.00010958,2]
[353217308,1739662238576,-744.06,0.00010958,2]
[353217309,1739662238585,-500.0,0.00010958,2]
[353217310,1739662238594,-500.0,0.00010958,2]
[353217311,1739662238603,-500.0,0.00010958,2]
[353217312,1739662238612,-500.0,0.00010958,2]
[353217313,1739662238621,-344.91927164,0.00010958,2]
[353217314,1739662238633,-155.08072836,0.00010958,2]
[353217315,1739662238641,-2692.29776405,0.00010958,2]
[353217316,1739662238652,-637.89223595,0.00010958,2]
[353217317,1739662238661,-331.93276405,0.00010958,2]
[353217318,1739662238676,-1383.83723595,0.00010958,2]
[353217319,1739662238686,-756.59,0.00010958,2]
[353217321,1739662238695,-706.62,0.00010958,2]
[353217323,1739662238705,-641.7,0.00010958,2]
[353217325,1739662238714,-1435.0622847,0.00010958,2]
[353217327,1739662238726,-66.8377153,0.00010958,2]
[353217329,1739662238735,-1565.74,0.00010958,2]
[353217331,1739662238744,-812.26,0.00010958,2]
[353217333,1739662238754,-715.37,0.00010958,2]
[353217335,1739662238763,-500.0,0.00010958,2]
[353217337,1739662238773,-816.52,0.00010958,2]
[353217339,1739662238783,-1653.45,0.00010958,2]
[353217341,1739662238792,-510.38397624,0.00010958,2]
[353217343,1739662238802,-4043.64,0.00010958,2]
[353217345,1739662238812,-500.0,0.00010958,2]
[353217347,1739662238821,-500.0,0.00010958,2]
[353217349,1739662238831,-500.0,0.00010958,2]
[353217351,1739662238840,-500.0,0.00010958,2]
[353217353,1739662238849,-500.0,0.00010958,2]
[353217355,1739662238859,-500.0,0.00010958,2]
[353217357,1739662238868,-500.0,0.00010958,2]
[353217359,1739662238878,-500.0,0.00010958,2]
[353217361,1739662238887,-500.22,0.00010958,2]
[353217363,1739662238896,-500.0,0.00010958,2]
[353217365,1739662238905,-500.0,0.00010958,2]
[353217367,1739662238914,-708.24,0.00010958,2]
[353217369,1739662238924,-1233.98,0.00010958,2]
[353217371,1739662238933,-662.34,0.00010958,2]
[353217373,1739662238943,-500.0,0.00010958,2]
[353217375,1739662238952,-1158.24,0.00010958,2]
[353217377,1739662238963,-1230.5,0.00010958,2]
[353217379,1739662238972,-500.0,0.00010958,2]
[353217381,1739662238982,-503.05648723,0.00010958,2]
[353217383,1739662238991,-1384.87,0.00010958,2]
[353217385,1739662239000,-500.0,0.00010958,2]
[353217387,1739662239011,-500.0,0.00010958,2]
[353217389,1739662239022,-692.66,0.00010958,2]
[353217391,1739662239032,-531.77,0.00010958,2]
[353217393,1739662239042,-959.09,0.00010958,2]
[353217395,1739662239050,-500.0,0.00010958,2]
[353217397,1739662239061,-535.86,0.00010958,2]
[353217399,1739662239071,-500.0,0.00010958,2]
[353217401,1739662239080,-500.0,0.00010958,2]
[353217403,1739662239091,-500.0,0.00010958,2]
[353217405,1739662239102,-1420.99,0.00010958,2]
[353217407,1739662239112,-914.13,0.00010958,2]
[353217409,1739662239121,-500.0,0.00010958,2]
[353217411,1739662239130,-500.0,0.00010958,2]
[353217413,1739662239139,-500.0,0.00010958,2]
[353217415,1739662239149,-676.02,0.00010958,2]
[353217417,1739662239158,-446.45060607,0.00010958,2]
[353217419,1739662239168,-753.78,0.00010958,2]
[353217421,1739662239177,-775.39,0.00010958,2]
[353217423,1739662239186,-502.85241964,0.00010958,2]
[353217425,1739662239196,-2042.2,0.00010958,2]
[353217427,1739662239205,-527.48,0.00010958,2]
[353217429,1739662239214,-500.0,0.00010958,2]
[353217431,1739662239223,-1134.61,0.00010958,2]
[353217433,1739662239233,-500.0,0.00010958,2]
[353217435,1739662239242,-182.251816,0.00010958,2]
[353217437,1739662239255,-569.718184,0.00010958,2]
[353217439,1739662239264,-262.35173159,0.00010958,2]
[353217447,1739662239753,-2008.51738208,0.0001085,2]
[353217448,1739662239998,-1319.89991137,0.0001085,2]
[353217449,1739662240014,-671.58270655,0.0001085,2]
[353217450,1739662240025,-237.64826841,0.00010958,2]
[353217451,1739662240034,-64.36902508,0.00010958,2]
[353217476,1739662242566,-924.78097492,0.00010958,2]
[353217478,1739662242576,-169.25902508,0.00010958,2]
[353217489,1739662242876,-640.89500003,0.00010958,2]
[353217492,1739662242887,-367.38597489,0.00010958,2]
[353217494,1739662242897,-526.61,0.00010958,2]
[353217495,1739662242906,-720.59,0.00010958,2]
[353217497,1739662242915,-500.0,0.00010958,2]
[353217499,1739662243058,-500.0,0.00010958,2]
[353217500,1739662243068,-500.0,0.00010958,2]
[353217501,1739662243078,-503.02271041,0.00010958,2]
[353217502,1739662243087,-500.0,0.00010958,2]
[353217503,1739662243099,-500.0,0.00010958,2]
[353217504,1739662243108,-500.0,0.00010958,2]
[353217505,1739662243118,-536.73444402,0.00010958,2]
[353217506,1739662243128,-1914.03,0.00010958,2]
[353217507,1739662243138,-1496.66,0.00010958,2]
[353217508,1739662243147,-500.0,0.00010958,2]
[353217509,1739662243156,-1292.45,0.00010958,2]
[353217510,1739662243166,-1104.55,0.00010958,2]
[353217511,1739662243175,-1155.64,0.00010958,2]
[353217512,1739662243184,-1549.94,0.00010958,2]
[353217513,1739662243193,-500.0,0.00010958,2]
[353217514,1739662243203,-1319.47,0.00010958,2]
[353217515,1739662243212,-803.99,0.00010958,2]
[353217516,1739662243222,-2096.32,0.00010958,2]
[353217517,1739662243232,-1796.88,0.00010958,2]
[353217518,1739662243242,-1196.58,0.00010958,2]
[353217519,1739662243252,-500.0,0.00010958,2]
[353217520,1739662243261,-500.0,0.00010958,2]
[353217521,1739662243269,-1007.21,0.00010958,2]
[353217522,1739662243279,-1304.12,0.00010958,2]
[353217523,1739662243287,-1301.48,0.00010958,2]
[353217524,1739662243296,-500.0,0.00010958,2]
[353217525,1739662243305,-2206.88,0.00010958,2]
[353217526,1739662243315,-500.0,0.00010958,2]
[353217527,1739662243324,-1170.28,0.00010958,2]
[353217528,1739662243334,-500.0,0.00010958,2]
[353217529,1739662243344,-507.5375779,0.00010958,2]
[353217530,1739662243353,-500.0,0.00010958,2]
[353217531,1739662243362,-500.0,0.00010958,2]
[353217532,1739662243371,-1260.05,0.00010958,2]
[353217533,1739662243380,-2542.63,0.00010958,2]
[353217534,1739662243390,-500.0,0.00010958,2]
[353217535,1739662243400,-1212.74,0.00010958,2]
[353217536,1739662243410,-500.0,0.00010958,2]
[353217537,1739662243419,-500.0,0.00010958,2]
[353217538,1739662243428,-1250.51,0.00010958,2]
[353217539,1739662243437,-666.59,0.00010958,2]
[353217540,1739662243447,-1433.27,0.00010958,2]
[353217541,1739662243456,-1.02209527,0.00010958,2]
[353217662,1739662626091,1227.8648,8.699e-05,2]
[353217665,1739663010682,222.6,0.000161,90]
[353217678,1739663431686,-805.74780042,9.3e-05,2]
[353217679,1739663431698,-194.25219958,9.3e-05,2]
[353217680,1739663431707,-150.0,9.301e-05,2]
[353217681,1739663431717,-1141.07,9.302e-05,2]
[353217682,1739663431726,-150.0,9.309e-05,2]
[353217683,1739663431736,-250.0,9.314e-05,2]
[353217684,1739663431745,-300.0,9.323e-05,2]
[353217685,1739663431755,-2196.57201137,9.324e-05,2]
[353217686,1739663431769,-4931.61992374,9.324e-05,2]
[353217687,1739663431781,-16771.80806489,9.324e-05,2]
[353217688,1739663431790,-465.31,9.337e-05,2]
[353217689,1739663431802,-805.21,9.404e-05,2]
[353217690,1739663431811,-150.0,9.912e-05,2]
[353217691,1739663431822,-150.0,9.912e-05,2]
[353217692,1739663431831,-150.0,9.912e-05,2]
[353217693,1739663431841,-703.06,0.0001004,2]
[353217694,1739663431850,-703.06,0.00010042,2]
[353217695,1739663431859,-703.06,0.00010045,2]
[353217696,1739663431869,-703.06,0.00010048,2]
[353217697,1739663431879,-703.06,0.0001005,2]
[353217698,1739663431889,-703.06,0.00010053,2]
[353217699,1739663431898,-703.06,0.00010056,2]
[353217700,1739663431908,-800.0,0.00010058,2]
[353217701,1739663431917,-500.0,0.00010058,2]
[353217702,1739663431926,-128.22112993,0.00010058,2]
[353217703,1739663431937,-771.77887007,0.00010058,2]
[353217704,1739663431947,-495.24,0.00010058,2]
[353217705,1739663431956,-501.52,0.00010058,2]
[353217706,1739663431966,-499.85,0.00010058,2]
[353217707,1739663431975,-432.39489198,0.00010058,2]
[353217708,1739663431986,-72.42510802,0.00010058,2]
[353217709,1739663431996,-493.92,0.00010058,2]
[353217711,1739663432005,-381.34489198,0.00010058,2]
[353217713,1739663432017,-122.91510802,0.00010058,2]
[353217715,1739663432026,-495.9,0.00010058,2]
[353217717,1739663432036,-495.25,0.00010058,2]
[353217719,1739663432045,-222.93489198,0.00010058,2]
[353217721,1739663432055,-480.12510802,0.00010058,2]
[353217722,1739663432065,-703.06,0.00010061,2]
[353217724,1739663432073,-703.06,0.00010063,2]
[353217725,1739663432083,-703.06,0.00010066,2]
[353217727,1739663432094,-703.06,0.00010069,2]
[353217728,1739663432104,-703.06,0.00010071,2]
[353217729,1739663432114,-703.06,0.00010074,2]
[353217730,1739663432124,-703.06,0.00010077,2]
[353217731,1739663432133,-703.06,0.00010079,2]
[353217732,1739663432142,-703.06,0.00010082,2]
[353217733,1739663432152,-703.06,0.00010084,2]
[353217734,1739663432162,-703.06,0.00010087,2]
[353217735,1739663432171,-703.06,0.0001009,2]
[353217736,1739663432180,-473.24,0.00010137,2]
[353217737,1739663432190,-775.49,0.00010141,2]
[353217738,1739663432201,-150.0,0.0001023,2]
[353217739,1739663432212,-420.0,0.00010255,2]
[353217740,1739663432222,-594.23,0.00010341,2]
[353217741,1739663432231,-1000.0,0.00010462,2]
[353217742,1739663432242,-1141.07,0.00010465,2]
[353217743,1739663432253,-200.0,0.00010499,2]
[353217744,1739663432262,-439.02,0.00010603,2]
[353217745,1739663432271,-303.28,0.00010603,2]
[353217746,1739663432280,-439.02,0.00010603,2]
[353217747,1739663432290,-439.02,0.00010603,2]
[353217748,1739663432299,-439.02,0.00010603,2]
[353217749,1739663432308,-200.0,0.00010773,2]
[353217750,1739663432318,-150.0,0.00010877,2]
[353217751,1739663432328,-503.08,0.00010877,2]
[353217752,1739663432337,-177.513,0.00010895,2]
[353217753,1739663432346,-233.46433616,0.0001094,2]
[353217754,1739663432355,-469.1422612,0.00010949,2]
[353217755,1739663432364,-1152.8300738,0.00010949,2]
[353217756,1739663432373,-627.3187834,0.00010949,2]
[353217757,1739663432382,-500.0,0.00010957,2]
[353217758,1739663432391,-254.67642864,0.00010957,2]
[353217759,1739663432400,-151.0,0.00010958,2]
[353217760,1739663432409,-500.0,0.00010958,2]
[353217761,1739663432419,-200.0,0.00010958,2]
[353217762,1739663432427,-1211.123703,0.00010958,2]
[353217763,1739663432437,-500.0,0.00010958,2]
[353217764,1739663432446,-155.916172,0.00010958,2]
[353217765,1739663432455,-500.0,0.00010958,2]
[353217766,1739663432464,-538.48858855,0.00010958,2]
[353217767,1739663432473,-500.0,0.00010958,2]
[353217768,1739663432483,-500.0,0.00010958,2]
[353217769,1739663432493,-265.35936965,0.00010958,2]
[353217770,1739663432503,-500.0,0.00010958,2]
[353217771,1739663432512,-509.12,0.00010958,2]
[353217772,1739663432521,-500.0,0.00010958,2]
[353217773,1739663432530,-500.0,0.00010958,2]
[353217774,1739663432539,-500.0,0.00010958,2]
[353217775,1739663432548,-877.470147,0.00010958,2]
[353217776,1739663432557,-500.0,0.00010958,2]
[353217777,1739663432566,-500.0,0.00010958,2]
[353217778,1739663432577,-500.0,0.00010958,2]
[353217779,1739663432592,-500.0,0.00010958,2]
[353217780,1739663432601,-500.0,0.00010958,2]
[353217781,1739663432610,-516.91,0.00010958,2]
[353217782,1739663432619,-534.43,0.00010958,2]
[353217783,1739663432630,-350.80282085,0.00010958,2]
[353217784,1739663432640,-500.0,0.00010958,2]
[353217785,1739663432649,-500.0,0.00010958,2]
[353217786,1739663432658,-500.0,0.00010958,2]
[353217787,1739663432667,-500.0,0.00010958,2]
[353217788,1739663432678,-523.09557401,0.00010958,2]
[353217789,1739663432687,-500.0,0.00010958,2]
[353217790,1739663432696,-500.0,0.00010958,2]
[353217791,1739663432705,-500.0,0.00010958,2]
[353217792,1739663432714,-500.0,0.00010958,2]
[353217793,1739663432723,-500.0,0.00010958,2]
[353217794,1739663432732,-500.0,0.00010958,2]
[353217795,1739663432741,-500.0,0.00010958,2]
[353217796,1739663432750,-500.0,0.00010958,2]
[353217797,1739663432759,-534.1,0.00010958,2]
[353217798,1739663432768,-500.0,0.00010958,2]
[353217799,1739663432777,-500.0,0.00010958,2]
[353217800,1739663432786,-500.0,0.00010958,2]
[353217801,1739663432795,-500.0,0.00010958,2]
[353217802,1739663432804,-500.0,0.00010958,2]
[353217803,1739663432813,-500.0,0.00010958,2]
[353217804,1739663432822,-500.0,0.00010958,2]
[353217805,1739663432831,-500.0,0.00010958,2]
[353217806,1739663432839,-500.0,0.00010958,2]
[353217807,1739663432848,-500.0,0.00010958,2]
[353217808,1739663432857,-500.0,0.00010958,2]
[353217809,1739663432866,-500.0,0.00010958,2]
[353217810,1739663432876,-194.1445702,0.00010958,2]
[353217811,1739663432886,-500.0,0.00010958,2]
[353217812,1739663432895,-500.0,0.00010958,2]
[353217813,1739663432905,-500.0,0.00010958,2]
[353217814,1739663432916,-500.0,0.00010958,2]
[353217815,1739663432925,-500.0,0.00010958,2]
[353217816,1739663432934,-500.0,0.00010958,2]
[353217817,1739663432944,-500.0,0.00010958,2]
[353217818,1739663432953,-500.0,0.00010958,2]
[353217819,1739663432963,-500.0,0.00010958,2]
[353217820,1739663432973,-500.0,0.00010958,2]
[353217821,1739663432983,-2600.316,0.00010958,2]
[353217822,1739663432992,-500.0,0.00010958,2]
[353217823,1739663433002,-500.0,0.00010958,2]
[353217824,1739663433011,-500.0,0.00010958,2]
[353217825,1739663433020,-500.0,0.00010958,2]
[353217826,1739663433030,-598.34,0.00010958,2]
[353217827,1739663433039,-500.0,0.00010958,2]
[353217828,1739663433048,-500.0,0.00010958,2]
[353217829,1739663433057,-500.0,0.00010958,2]
[353217830,1739663433066,-500.0,0.00010958,2]
[353217831,1739663433075,-500.0,0.00010958,2]
[353217832,1739663433084,-500.0,0.00010958,2]
[353217833,1739663433093,-500.0,0.00010958,2]
[353217834,1739663433103,-500.0,0.00010958,2]
[353217835,1739663433112,-500.0,0.00010958,2]
[353217836,1739663433121,-500.0,0.00010958,2]
[353217837,1739663433130,-500.0,0.00010958,2]
[353217838,1739663433139,-509.4737358,0.00010958,2]
[353217839,1739663433287,-500.0,0.00010958,2]
[353217840,1739663433297,-500.0,0.00010958,2]
[353217841,1739663433306,-500.0,0.00010958,2]
[353217842,1739663433316,-500.0,0.00010958,2]
[353217843,1739663433325,-200.0,0.00010958,2]
[353217844,1739663433335,-442.88,0.00010958,2]
[353217845,1739663433344,-500.0,0.00010958,2]
[353217846,1739663433353,-500.0,0.00010958,2]
[353217847,1739663433363,-789.27,0.00010958,2]
[353217848,1739663433372,-612.05,0.00010958,2]
[353217849,1739663433381,-500.0,0.00010958,2]
[353217850,1739663433390,-190.86224422,0.00010958,2]
[353217851,1739663433400,-1165.79,0.00010958,2]
[353217852,1739663433409,-500.0,0.00010958,2]
[353217853,1739663433418,-158.165113,0.00010958,2]
[353217854,1739663433427,-500.0,0.00010958,2]
[353217855,1739663433436,-500.0,0.00010958,2]
[353217856,1739663433446,-506.72028729,0.00010958,2]
[353217857,1739663433455,-500.0,0.00010958,2]
[353217858,1739663433464,-500.0,0.00010958,2]
[353217859,1739663433473,-940.23,0.00010958,2]
[353217860,1739663433482,-500.0,0.00010958,2]
[353217861,1739663433491,-578.38,0.00010958,2]
[353217862,1739663433500,-500.0,0.00010958,2]
[353217863,1739663433510,-500.0,0.00010958,2]
[353217864,1739663433519,-500.0,0.00010958,2]
[353217865,1739663433528,-500.0,0.00010958,2]
[353217866,1739663433538,-500.0,0.00010958,2]
[353217867,1739663433547,-500.0,0.00010958,2]
[353217868,1739663433556,-500.0,0.00010958,2]
[353217869,1739663433566,-500.0,0.00010958,2]
[353217870,1739663433575,-500.0,0.00010958,2]
[353217871,1739663433587,-619.9,0.00010958,2]
[353217872,1739663433596,-500.0,0.00010958,2]
[353217873,1739663433605,-545.81,0.00010958,2]
[353217874,1739663433614,-800.32,0.00010958,2]
[353217875,1739663433623,-500.0,0.00010958,2]
[353217876,1739663433632,-898.33,0.00010958,2]
[353217877,1739663433641,-500.0,0.00010958,2]
[353217878,1739663433650,-611.06,0.00010958,2]
[353217879,1739663433660,-662.06,0.00010958,2]
[353217880,1739663433669,-500.0,0.00010958,2]
[353217881,1739663433679,-659.81,0.00010958,2]
[353217882,1739663433689,-511.07,0.00010958,2]
[353217883,1739663433698,-500.0,0.00010958,2]
[353217884,1739663433708,-500.0,0.00010958,2]
[353217885,1739663433717,-731.17,0.00010958,2]
[353217886,1739663433726,-500.0,0.00010958,2]
[353217887,1739663433735,-500.0,0.00010958,2]
[353217888,1739663433745,-500.0,0.00010958,2]
[353217889,1739663433754,-271.57987799,0.00010958,2]